Cogmind - Beta 16.1 @@@ ROGUE MODE // 2026.02.16 @ 14:19:21 Player: Florist Result: Destroyed by 4D-CA2(R) with Subdweller Machine Gun Performance ------------- Evolutions (0) 0 Regions Visited (2) 400 Robots Destroyed (34) 170 Value Destroyed (621) 621 Prototype IDs (0) 0 Alien Tech Used (0) 0 Bonus (0) 0 TOTAL SCORE: 1191 Bonus ------- None Cogmind --------- Core Integrity 0/250 Matter 300/300 Energy 12/100 System Corruption 3% Temperature Cool (0) Movement Treading (160) Location -10/Subcaves Parts ------- > --- POWER (1) -------- (None) > --- PROPULSION (2) --- Light Treads Light Treads > --- UTILITY (2) ------ Large Storage Unit Seismic Detector (fused) > --- WEAPON (2) ------- Medium Laser Subdweller Laser > --- INVENTORY (15) --- Light Ion Engine Light Treads Flight Unit Flight Unit Flight Unit Flight Unit Small Storage Unit Visual Processing Unit Hacking Suite Medium Laser Ripper Piercing Trap Peak State ------------ > --- POWER ------------ Ion Engine > --- PROPULSION ------- Light Treads Light Treads > --- UTILITY ---------- Large Storage Unit Seismic Detector > --- WEAPON ----------- Medium Laser Ripper > --- INVENTORY -------- Light Ion Engine Light Treads Light Treads Light Treads Flight Unit Flight Unit Flight Unit Flight Unit Small Storage Unit Visual Processing Unit Hacking Suite Medium Laser Medium Laser Medium Laser Piercing Trap [Rating: 11] Favorites ----------- Power Ion Engine Engine Ion Engine Propulsion Light Treads Treads Light Treads Utility Large Storage Unit Device Seismic Detector Storage Large Storage Unit Weapon Medium Laser Energy Gun Medium Laser Ballistic Gun Light Assault Rifle Impact Weapon Hammer Slashing Weapon Ripper Build | -11 -10 -10 ------- Run | Yrd Mat Sub Slots Evolved . | . . . Power . | . . . Propulsion . | . . . Utility . | . . . Weapon . | . . . Parts Attached 21 | 8 7 6 Power 2 | 1 1 . Engine 2 | 1 1 . Core . | . . . Reactor . | . . . Propulsion 5 | 2 1 2 Treads 5 | 2 1 2 Leg . | . . . Wheel . | . . . Hover . | . . . Flight . | . . . Utility 4 | 2 2 . Device 2 | 1 1 . Storage 2 | 1 1 . Processor . | . . . Hackware . | . . . Protection . | . . . Artifact . | . . . Weapon 10 | 3 3 4 Energy Gun 7 | 2 3 2 Energy Cannon . | . . . Ballistic Gun 1 | 1 . . Ballistic Cannon . | . . . Launcher . | . . . Special Weapon . | . . . Impact Weapon 1 | . . 1 Slashing Weapon 1 | . . 1 Piercing Weapon . | . . . Special Melee Weapon . | . . . Unidentified Prototypes . | . . . Parts Lost 6 | . 2 4 Power 2 | . 1 1 Propulsion 2 | . . 2 Utility 1 | . 1 . Weapon 1 | . . 1 Highest Loss Streak 4 | . 1 4 To Critical Strikes . | . . . Average Backups 10 | 3 9 13 Power . | . 1 1 Propulsion 4 | 1 3 6 Utility 2 | . 2 3 Weapon 2 | . 2 2 Tool/Special . | . . . Unused Backups 9 | . 2 7 Power 1 | . . 1 Propulsion 6 | . 2 4 Utility 2 | . . 2 Weapon . | . . . Tool/Special . | . . . Average Slot Usage (%) 97 | . 95 99 Engine 13 | . 13 13 Treads 27 | . 28 27 Device 12 | . 10 14 Storage 14 | . 14 14 Energy Gun 25 | . 26 25 Ballistic Gun 1 | . 1 . Peak Build Rating 11 | 7 9 11 Average Rating 8 | 5 7 8 On Entrance 5 | . 7 8 Avg Prop Armor Cover (%) . | . . . Naked Turns . | . . . Heaviest Build 31 | 14 31 31 Greatest Support 40 | 40 40 40 Greatest Overweight (x) 1 | . . 1 Average Overweight (x) . | . . . Largest Inventory Capacity 15 | 8 15 15 Average Capacity 14 | 5 14 15 Most Carried 15 | 5 15 15 Average Carried 11 | 3 9 14 Final Capacity 15 | 8 15 15 Final Carried 14 | 5 14 12 Class Distribution -------------------- 100% | Mutant Dominant Class ---------------- Mutant | -10/Materials Mutant | -10/Subcaves Resources | -11 -10 -10 ----------- Run | Yrd Mat Sub Matter Collected 450 | 286 108 56 Remotely . | . . . Salvage Created 1012 | 118 679 215 Parts 70 | 9 45 16 Haulers Intercepted 2 | . 2 . Recyclers Shooed 3 | 1 2 . Parts Field Recycled . | . . . Retrieved Matter . | . . . Parts Self-Destructed 11 | . . 11 Prevented . | . . . Parts Restored . | . . . Kills | -11 -10 -10 ------- Run | Yrd Mat Sub Combat Hostiles Destroyed 21 | . 14 7 Guns 21 | . 14 7 Classes Destroyed 10 | 2 7 1 Worker 1 | . 1 . Builder 1 | . 1 . Tunneler 2 | 2 . . Hauler 2 | . 2 . Recycler 2 | 1 1 . Operator 2 | . 2 . Watcher 3 | . 3 . Swarmer 10 | . 6 4 Grunt 8 | . 8 . Subdweller 3 | . . 3 Best Kill Streak 4 | 2 4 4 Combat Bots Only 4 | . 3 4 Max Kills in Single Turn 2 | 1 2 1 Gunslinging . | . . . Exploded . | . . . Melee . | . . . Uniques/NPCs Destroyed . | . . . Combat | -11 -10 -10 -------- Run | Yrd Mat Sub Hostile Shots Fired 136 | . 75 61 Missed 28 | . 14 14 Hits 108 | . 61 47 Projectile 108 | . 61 47 Critical Strikes 5 | . . 5 Damage Taken 1216 | . 562 654 Core 260 | . 116 144 Absorbed by Shields . | . . . Core Remaining (%) 100 | 100 . . Volleys Fired 109 | 13 69 27 Largest 2 | 2 2 2 Hottest 115 | 70 115 110 Shots Fired 205 | 26 128 51 Gun 205 | 26 128 51 Cannon . | . . . Launcher . | . . . Special . | . . . Kinetic 16 | 13 3 . Thermal 189 | 13 125 51 Explosive . | . . . Electromagnetic . | . . . Robot Hit Streak 14 | 8 8 14 Robot Miss Streak 4 | 2 3 4 Penetration Max . | . . . Secondary Targets . | . . . Shots Hit Robots 124 | 15 78 31 Core Hits 47 | 5 31 11 Critical Kills . | . . . Critical Parts Destroyed . | . . . Critical Strikes 12 | 1 8 3 Burn 12 | 1 8 3 Melee Attacks 9 | . . 9 Impact 8 | . . 8 Slashing 1 | . . 1 Piercing . | . . . Sneak Attacks . | . . . Combat Hostiles . | . . . Follow-up Attacks . | . . . Damage Inflicted 1755 | 158 1172 425 Guns 1752 | 158 1169 425 Cannons . | . . . Explosions . | . . . Melee . | . . . Ramming 3 | . 3 . Kinetic 73 | 60 13 . Thermal 1679 | 98 1156 425 Explosive . | . . . Electromagnetic . | . . . Impact . | . . . Slashing . | . . . Piercing . | . . . Highest Corruption 3 | . 3 3 Average Corruption 2 | . 2 3 Corruption Purged . | . . . Corruption Blocked . | . . . Effects 33 | . 20 13 Message Errors 3 | . 1 2 Matter Fused 6 | . 4 2 Heat Flow Errors 7 | . 5 2 Energy Discharges 2 | . 1 1 Parts Fused 2 | . 2 . Data Loss (minor) 6 | . 3 3 Data Loss (major) 2 | . 1 1 Misfires 1 | . 1 . Alerts 1 | . 1 . Weapon Failures 3 | . 1 2 Overload Shots . | . . . Overflow Damage . | . . . Projectiles . | . . . Explosions . | . . . Melee . | . . . Knockbacks . | . . . Impact . | . . . Kinetic . | . . . Secondary . | . . . Self-Inflicted Damage . | . . . Shots . | . . . Rammed 1 | . 1 . Targets Rammed 1 | . 1 . Kicked . | . . . Crushed . | . . . Highest Temperature 422 | 70 422 243 Average Temperature 116 | 36 126 104 Received Heat Transfer 255 | . 153 102 Effects 4 | . 4 . Shutdowns 1 | . 1 . Interference 3 | . 3 . Siege Activations . | . . . Martial Activations . | . . . Shielding Activations . | . . . Robots Disrupted . | . . . Combat Hostiles . | . . . Robots Corrupted . | . . . Combat Hostiles . | . . . Parts Fried . | . . . Impact Corruptions . | . . . Robots Melted . | . . . Combat Hostiles . | . . . Parts Melted 11 | . 9 2 Heat Transferred 5329 | 370 3589 1370 Parts Sabotaged . | . . . Parts Stolen . | . . . Parts Stripped . | . . . Power Chain Reactions . | . . . Alert | -11 -10 -10 ------- Run | Yrd Mat Sub Maximum Alert Level 1 | . 1 . Low Security (%) 87 | 100 86 . Level 1 12 | . 13 . Level 2 . | . . . Level 3 . | . . . Level 4 . | . . . Level 5 . | . . . High Security . | . . . Max Security . | . . . Peak Influence 241 | 10 241 . Initial . | . . . Average 104 | 1 117 . Influence Increases 706 | 15 581 110 Destroy 0b10 Robot/C 360 | . 280 80 Destroy 0b10 Robot/NC 65 | 15 50 . Destroy Leader 70 | . 70 . Successful Hack 12 | . 12 . Select Force Hacks 30 | . 30 . Destroy Structure 4 | . 4 . Partial Spotted 15 | . 15 . Lose Combat Pursuer 150 | . 120 30 Influence Decreases 706 | 15 455 236 Entered New Map 62 | . . 62 Time Decay 624 | 15 435 174 Lost Part 20 | . 20 . Squads Dispatched 3 | . 3 . Investigation 1 | . 1 . Extermination . | . . . Reinforcement 2 | . 2 . Assault . | . . . Garrison . | . . . Intercept . | . . . Searches Triggered . | . . . Construction Impeded . | . . . Haulers Reinforced . | . . . Active Scanning Responses . | . . . Cargo Convoy Interrupts . | . . . Stealth | -11 -10 -10 --------- Run | Yrd Mat Sub Distress Signals 7 | . 7 . Communications Jammed . | . . . Distress Signals . | . . . Times Spotted 37 | . 28 9 Peak Tracking Total 4 | . 4 4 Tactical Retreats 6 | . 5 1 Traps | -11 -10 -10 ------- Run | Yrd Mat Sub Traps Triggered 2 | . 2 . Indirectly . | . . . Trap Hack Attempts . | . . . Triggered . | . . . Disarmed . | . . . Reprogrammed . | . . . Reused . | . . . Traps Extracted . | . . . Installed . | . . . Triggered . | . . . Most Traps Carried 1 | . . 1 Machines | -11 -10 -10 ---------- Run | Yrd Mat Sub Machines Disabled . | . . . Max in Single Turn . | . . . Machines Repaired . | . . . Machines Dismantled . | . . . Machines Sabotaged . | . . . Overloaded Fab Kills . | . . . Hacking | -11 -10 -10 --------- Run | Yrd Mat Sub Machines Accessed 7 | . 7 . Terminals 6 | . 6 . Fabricators . | . . . Repair Stations . | . . . Recycling Units 1 | . 1 . Scanalyzers . | . . . Garrison Access . | . . . Total Hacks 18 | . 18 . Successful 11 | . 11 . Failed 7 | . 7 . Catastrophic . | . . . Database Lockouts . | . . . Manual 17 | . 17 . Terminals 16 | . 16 . Fabricators . | . . . Repair Stations . | . . . Recycling Units 2 | . 2 . Scanalyzers . | . . . Garrison Access . | . . . Terminal Hacks . | . . . Fabricator Hacks . | . . . Repair Station Hacks . | . . . Recycling Unit Hacks 1 | . 1 . Retrieve Components 1 | . 1 . Scanalyzer . | . . . Garrison Access Hacks . | . . . Unauthorized Hacks 10 | . 10 . Terminals 9 | . 9 . Botnet 5 | . 5 . Skim 4 | . 4 . Fabricators . | . . . Repair Stations . | . . . Recycling Units 1 | . 1 . Tunnel 1 | . 1 . Scanalyzers . | . . . Garrison Access . | . . . Data Cores Recovered . | . . . Used . | . . . Hacking Detections 7 | . 7 . Full Trace Events . | . . . Feedback Events . | . . . Feedback Blocked . | . . . Robot Schematics Acquired . | . . . Robots Built . | . . . Authchips . | . . . Time . | . . . Total Robot Build Rating . | . . . Part Schematics Acquired . | . . . Parts Built . | . . . Authchips . | . . . Time . | . . . Total Part Build Rating . | . . . Part Studies Acquired . | . . . Parts Repaired . | . . . Time . | . . . Parts Recycled . | . . . Recycled Matter . | . . . Retrieved Matter . | . . . Retrieved Components 2 | . 2 . Parts Scanalyzed . | . . . Part Schematics Acquired . | . . . Parts Damaged . | . . . Bothacking | -11 -10 -10 ------------ Run | Yrd Mat Sub Used RIF Installer . | . . . Robots Hacked . | . . . Non-combat . | . . . Combat . | . . . Robot Hacks Applied . | . . . Relay Couplers Released . | . . . Fabnet Peak Effective % . | . . . Robots Rewired . | . . . Allies Hacked . | . . . Hacks Repelled . | . . . Allies | -11 -10 -10 -------- Run | Yrd Mat Sub Total Allies . | . . . Largest Group . | . . . Highest-Rated Group . | . . . Highest-Rated Ally . | . . . Total Orders . | . . . Ally Attacks . | . . . Total Damage . | . . . Kills . | . . . Allies Corrupted . | . . . Allies Melted . | . . . Intel | -11 -10 -10 ------- Run | Yrd Mat Sub Active Infowar (turns) 1941 | 63 1003 875 Seismic 1941 | 63 1003 875 Robot Analysis Total . | . . . Derelict Logs Recovered 1 | . . 1 Drone Launches . | . . . Drone Recoveries . | . . . Exploration | -11 -10 -10 ------------- Run | Yrd Mat Sub Turns Passed 2322 | 158 1289 875 Spaces Moved 1070 | 69 583 418 Core 5 | 5 . . Treads 1065 | 64 583 418 Legs . | . . . Wheels . | . . . Hover . | . . . Flight . | . . . Fastest Speed 50 | 50 160 160 Average Speed 159 | 152 160 160 Slowest Speed 240 | 160 160 240 Overloaded Moves . | . . . Propulsion Burnouts . | . . . Robots Hopped . | . . . Potential Cave-ins . | . . . Cave-ins Triggered . | . . . Exploration Rate (%) 41 | 5 89 29 Regions Visited 2 Branch Regions 1 Pre-discovered Areas 1 | . 1 . Known Exits Taken . | . . . Unknown Exits Taken 2 | 1 1 . Scrap Searched 2 | . . 2 Spaces Dug . | . . . Terrain Destroyed . | . . . Melee . | . . . Projectile . | . . . AOE . | . . . Terrain Rammed . | . . . Walls Destroyed . | . . . Machines Disabled . | . . . Actions | -11 -10 -10 --------- Run | Yrd Mat Sub Total 1461 | 95 811 555 Wait 224 | . 133 91 Move 1068 | 68 582 418 Hop . | . . . Pick Up 21 | 6 13 2 Fast Attach 10 | 6 3 1 Attach 5 | 1 1 3 Detach . | . . . Swap 6 | 1 3 2 Drop 8 | . 6 2 Fire 109 | 13 69 27 Melee 9 | . . 9 Ram . | . . . Kick . | . . . Crush 1 | . 1 . Escape Stasis . | . . . Rewire . | . . . Trap . | . . . Miscellaneous . | . . . Route ------- -11/Scrapyard -10/Materials (discovered 6 exits: [*Mat x3] / [*Min x2] / [*Sub]) -10/Subcaves History --------- Turn | Location | Event 7 | -11/Scrapyard | Discovered new exit (range 14) 159 | -11/Scrapyard | Entered Materials 315 | -10/Materials | Build established: Mutant 403 | -10/Materials | Discovered new exit (range 16) 555 | -10/Materials | Discovered new exit (range 9) 926 | -10/Materials | Discovered new exit (range 12) 1060 | -10/Materials | Discovered new exit (range 16) 1326 | -10/Materials | Discovered new exit (range 9) 1425 | -10/Materials | Discovered new exit (range 14) 1448 | -10/Materials | Entered Subcaves 1449 | -10/Subcaves | Approached by a straggling Scientist 1538 | -10/Subcaves | Shifting Twisted Machinery released Piercing Trap 1570 | -10/Subcaves | Core integrity fell below 50% 1733 | -10/Subcaves | Shifting Twisted Machinery released Ripper 1768 | -10/Subcaves | Learned location of 1 exit from Materials 1848 | -10/Subcaves | Shifting Twisted Machinery released Battle Rifle 1897 | -10/Subcaves | Shifting Twisted Machinery released Slug Cannon 2113 | -10/Subcaves | A swath of the cavern ceiling suddenly collapsed 2129 | -10/Subcaves | Shifting Twisted Machinery released Sub. Power Source 2130 | -10/Subcaves | Shifting Twisted Machinery released Riot Gun 2272 | -10/Subcaves | A Subdweller sparked back to life 2281 | -10/Subcaves | Core integrity fell below 20% 2323 | -10/Subcaves | Destroyed by 4D-CA2(R) with Subdweller Machine Gun Last Messages --------------- 01912_ System corrupted: Matter fused (-5). 01982_ TQW &NTJNZV6Z046:5XEE#>/ PMLPPIZKQ D 02096_ Acquired 15 matter. A swath of the cavern ceiling suddenly collapses. Sub. Power Source falls loose from the Twisted Machinery. Riot Gun falls loose from the Twisted Machinery. 02148_ System corrupted: Component data lost. 02214_ System corrupted: Heat flow error (+211). 02272_ 4D-CA2(R) creaks and sparks as it begins to move. 02272_ Lgt. Treads destroyed. 02290_ MN-ZDT(R) suffers critical hit (Burn). 02299_ MN-ZDT(R) destroyed. 02302_ Med. Laser destroyed. 02302_ RQ-Q8T(R) suffers critical hit (Burn). 02304_ Ion Engine destroyed. 02305_ RQ-Q8T(R) destroyed. 02310_ Lgt. Treads destroyed. 02312_ 4D-CA2(R) affixes Scrap Shield Fragment to Scrap Shield. 02318_ Acquired 15 matter. 02319_ 4D-CA2(R) affixes Scrap Shield Fragment to Scrap Shield. Map ----- +----------------------------------------------------+ | #????????###???????????????????????????????? | | #####???## #???????????????????????????????? | | [ ##### ##########??????????????????????? | | " """"" ##?????????????????????? | | """ ##????????????????????? | | " ###### ###??????????????????? | | " ###????# ##?????????????????? | | """ ##??????# ## #?????????????????? | | """ ##???????# ### #?????????????????? | | """ #???????# #?# #?????????????????? | | #####???????#####?## #?????????????????? | | #????##????????????## ##?????????????????? | | ##???## ##??????###### ##??????????????????? | | #?????# ##????## #???????????????????? | | #??????# ###?## ##???????????????????? | | ????????# ### ##????????????????????? | | ??????????# #### #?????????????????????? | | ??????????## ## ### ###???????????????????? | | ???????????####### #### #????????????? | | ?????????????????## # #????????????? | | ??????????????????###### ## ##????????????? | | ??????????????????????## #?# ##?????????????? | | ?????????????????????## #??#####??????????????? | | ????????????????##???# #?????????????????????? | | ???????????????## #### = #####?????????????????? | | ??????????????## [R!@ #?????????????????? | | ??????????????# ### #?????????????????? | | ??????????????# !!&##?# #?????????????????? | | ??????????????# %##### ####??????????????? | | ??????????????# &[ #??????????????? | | ??????????????## #### < #?????????????? | | ???????????????##### # # #?#< #?????????????? | | ???????????????????##### #?# #?????????????? | | ???????????????????????## #?" < <#?????????????? | | ????????????????????????# #?##" ????????????? | | ????????????????????????# ??## ???????????? | | ???????????????????????? ??? ??????????? | | ????????????????????????# ??#### #?????????? | | ????????????????????????? ##????? ###?????????? | | ????????????????????????? ###???????#???????????? | | ????????????????????????? #?????????????????????? | | ????????????????????????? #?????????????????????? | | ????????????????????????? ?????????????????????? | | ????????????????????????? ?????????????????????? | | ????????????????????????? ??????????????????????? | | ?????????????????????????????????????????????????? | | ?????????????????????????????????????????????????? | | ?????????????????????????????????????????????????? | | ?????????????????????????????????????????????????? | | ?????????????????????????????????????????????????? | +----------------------------------------------------+ Best States ------------- Heat Dissipation 25 Energy Generation 10 Energy Capacity 250 Matter Stores 300 Matter Capacity 300 Sight Range 16 Terrain Scan Density 10 Evasion (%) 40 Recoil Reduction 2 Item Schematics ----------------- None Robot Schematics ------------------ None Fabricated ------------ Nothing Repaired ---------- Nothing Studied --------- None Alien Tech Used ----------------- None Achievements -------------- None Challenges ------------ None Game ------ Seed WeaponArmageddonOptics Manual? 0 Play Time 00:11:11 Cumulative 273.7 hours Start 2026.02.16 @ 14:06:35 End 2026.02.16 @ 14:19:21 Sessions 1 Manual Loads 0 Difficulty Rogue Special Mode None Game No. 227 Rogue 227 Adventurer 0 Explorer 0 Win Type - Total 16 Types 7/0/7/2/0/0/0/0/0/0 Lore% 82 Gallery% 71 Achievement% 52 Wizard Run 0 Options --------- Layout 1 ASCII 0 Keyboard 0 Movement Numpad Keybinds 0 Fullscreen 1 Font 32/SmallcapsGlow Map View 77x35 Zoom Use 0% Tactical HUD 1 Map Filters NONE Filters NONE Steam 1 RUN: d8f6c360-c31b-44b9-88cf-e4c2351cb1c1